bitfinex/quotes_SOLUSD_20220114
["timestamp","ask_amount","ask_price","bid_price","bid_amount"]
[1642190727496,89.8349,148.82,148.72,10.0829]
[1642190727698,2.688,148.81,148.72,10.3329]
[1642190728098,2.938,148.81,148.72,10.0829]
[1642190728298,13.022,148.81,148.72,10.0829]
[1642190728498,13.022,148.81,148.72,10.3329]
[1642190729504,13.022,148.81,148.72,0.25]
[1642190729699,24.072,148.8,148.72,0.25]
[1642190729900,2.688,148.79,148.71,0.25]
[1642190730199,27.01,148.8,148.71,2.688]
[1642190730402,0.25,148.79,148.71,2.688]
[1642190730601,0.25,148.79,148.71,2.938]
[1642190731301,0.25,148.79,148.71,13.0222]
[1642190731504,27.01,148.8,148.71,13.0222]
[1642190733101,27.01,148.8,148.71,10.3342]
[1642190733704,33.01,148.8,148.71,10.3342]
[1642190734004,27.01,148.8,148.71,10.3342]
[1642190736106,33.01,148.8,148.71,10.3342]
[1642190736906,100.33,148.8,148.71,10.3342]
[1642190738105,94.33,148.8,148.71,10.3342]
[1642190738307,100.33,148.8,148.71,10.3342]
[1642190738707,94.33,148.8,148.71,10.3342]
[1642190739110,100.33,148.8,148.71,10.3342]
[1642190739508,94.33,148.8,148.71,10.3342]
[1642190739707,100.33,148.8,148.71,10.3342]
[1642190740209,100.33,148.8,148.71,20.0142]
[1642190740412,26.76,148.8,148.71,20.0142]
[1642190740612,2.688,148.82,148.71,26.0142]
[1642190741641,27.025,148.82,148.71,26.0142]
[1642190741840,27.275,148.82,148.71,26.0142]
[1642190743043,27.275,148.82,148.75,10.0813]
[1642190743444,27.275,148.82,148.75,16.0813]
[1642190745044,27.275,148.82,148.75,10.0813]
[1642190745847,27.025,148.82,148.75,10.0813]
[1642190746049,27.025,148.82,148.75,10.3313]
[1642190746449,27.025,148.82,148.75,16.3313]
[1642190747049,24.337,148.82,148.75,16.3313]
[1642190747251,24.587,148.82,148.75,16.3313]
[1642190747949,24.587,148.82,148.75,10.3313]
[1642190748351,24.587,148.82,148.75,20.0113]
[1642190748650,24.587,148.82,148.75,26.0113]
[1642190749352,24.587,148.82,148.75,20.0113]
[1642190750652,24.587,148.82,148.75,10.3313]
[1642190752153,24.587,148.82,148.75,0.25]
[1642190752452,24.587,148.82,148.74,2.938]
[1642190752654,24.587,148.82,148.73,2.688]
[1642190752853,27.275,148.82,148.73,2.688]
[1642190753353,27.275,148.82,148.74,10.082]
[1642190753953,27.275,148.82,148.74,10.332]
[1642190754956,37.3583,148.82,148.74,0.25]
[1642190755355,37.3583,148.82,148.72,10.3331]
[1642190755957,27.275,148.82,148.72,10.3331]
[1642190756155,27.275,148.82,148.72,20.0131]
[1642190757159,27.275,148.82,148.72,26.0131]
[1642190757356,27.275,148.82,148.72,20.0131]
[1642190757958,33.275,148.82,148.72,26.0131]
[1642190758257,27.275,148.82,148.72,26.0131]
[1642190758659,27.025,148.82,148.72,26.0131]
[1642190759259,24.337,148.82,148.74,10.0816]
[1642190759460,24.337,148.82,148.74,20.0116]
[1642190760059,24.587,148.82,148.74,20.0116]
[1642190760459,27.275,148.82,148.74,20.0116]
[1642190760862,33.275,148.82,148.74,20.0116]
[1642190761561,33.275,148.82,148.74,9.93]
[1642190762362,27.275,148.82,148.74,9.93]
[1642190762763,27.275,148.82,148.74,9.68]
[1642190762965,27.275,148.82,148.74,15.93]
[1642190763762,27.275,148.82,148.74,15.68]
[1642190764362,106.37907588,148.82,148.74,9.68]
[1642190764664,106.37907588,148.82,148.72,2.688]
[1642190764863,112.37907588,148.82,148.71,12.7718]
[1642190765061,112.37907588,148.82,148.71,10.0838]
[1642190765462,112.37907588,148.82,148.71,10.3338]
[1642190766665,112.37907588,148.82,148.69,16.5745515]
[1642190766863,9.68,148.81,148.69,6.4895515]
[1642190767063,10.0877,148.76,148.69,3.8015515]
[1642190767266,24.89492239,148.75,148.68,3.8015515]
[1642190767468,51.76762239,148.75,148.68,3.8015515]
[1642190767665,49.07862239,148.75,148.68,3.8015515]
[1642190767867,2.689,148.74,148.68,3.8015515]
[1642190768164,2.939,148.74,148.68,3.8015515]
[1642190768366,13.0277,148.74,148.68,3.8015515]
[1642190768565,80.3477,148.74,148.65,6.4905515]
[1642190768764,24.7126,148.73,148.65,3.8015515]
[1642190768967,24.9626,148.73,148.65,3.8015515]
[1642190769464,24.9626,148.73,148.65,4.0515515]
[1642190770065,24.9626,148.73,148.65,4.08809184]
[1642190771068,24.9626,148.73,148.65,0.25]
[1642190771273,24.9626,148.73,148.64,23.8205515]
[1642190772271,24.9626,148.73,148.65,3.83803686]
[1642190772472,24.9626,148.73,148.65,4.08803686]
[1642190772669,24.9626,148.73,148.65,14.17623686]
[1642190772869,2.689,148.74,148.65,14.17623686]
[1642190773070,2.69,148.76,148.66,2.69]
[1642190773272,35.2237,148.79,148.66,2.69]
[1642190773469,38.5347,148.79,148.66,8.94]
[1642190773670,105.8547,148.79,148.66,8.44]
[1642190773871,25.54499636,148.78,148.66,8.44]
[1642190774070,2.689,148.77,148.66,8.44]
[1642190774503,8.689,148.77,148.68,10.0856]
[1642190774770,22.523,148.76,148.68,10.0856]
[1642190774969,28.773,148.76,148.68,10.3356]
[1642190777573,28.773,148.76,148.68,10.0856]
[1642190777775,28.523,148.76,148.68,10.0856]
[1642190778976,28.523,148.76,148.68,10.3356]
[1642190779377,28.773,148.76,148.68,10.3356]
[1642190783611,2.689,148.77,148.68,16.3356]
[1642190783811,2.689,148.77,148.68,26.0156]
[1642190784014,0.25,148.77,148.69,2.689]
[1642190784213,0.25,148.77,148.71,10.0839]
[1642190784415,27.6642,148.79,148.71,10.3339]
[1642190784615,2.689,148.79,148.71,18.0119]
[1642190784813,3.82561507,148.82,148.72,2.689]
[1642190785014,24.0189,148.84,148.72,2.939]
[1642190785015,40.61501507,148.84,148.72,2.939]
[1642190785214,40.61501507,148.84,148.72,8.939]
[1642190785417,31.49332699,148.83,148.72,18.619]
[1642190785614,31.49332699,148.83,148.73,10.0823]
[1642190785816,27.2245,148.82,148.73,10.0823]
[1642190786015,33.4745,148.82,148.73,10.3323]
[1642190786415,33.2245,148.82,148.73,10.3323]
[1642190786816,43.3078,148.82,148.72,2.689]
[1642190787021,43.3078,148.82,148.72,2.939]
[1642190787217,110.6278,148.82,148.72,2.689]
[1642190787416,110.6278,148.82,148.72,2.939]
[1642190787816,110.8778,148.82,148.72,2.939]
[1642190788218,110.8778,148.82,148.72,2.689]
[1642190789219,110.8778,148.82,148.69,10.0851]
[1642190789420,10.086,148.78,148.68,3.8015515]
[1642190789621,27.1772533,148.76,148.68,3.8015515]
[1642190790022,27.4272533,148.76,148.68,3.8015515]
[1642190790222,67.32,148.75,148.68,3.8015515]
[1642190790421,10.0899,148.73,148.65,3.8015515]
[1642190790627,2.69,148.72,148.65,3.8015515]
[1642190790820,76.26,148.73,148.65,3.8015515]
[1642190791024,73.57,148.72,148.65,3.8015515]
[1642190791324,6.25,148.72,148.65,3.8015515]
[1642190791522,0.25,148.72,148.62,2.689]
[1642190791722,29.2373,148.72,148.62,2.939]
[1642190791922,25.37221884,148.7,148.62,0.25]
[1642190792122,50.37181884,148.7,148.62,0.25]
[1642190792322,123.94181884,148.7,148.61,13.0303]
[1642190792823,123.94181884,148.7,148.61,2.94]
[1642190793023,142.84231884,148.7,148.61,2.94]
[1642190793252,142.84231884,148.7,148.6,2.69]
[1642190793423,152.52231884,148.7,148.6,2.69]
[1642190793624,152.52231884,148.7,148.58,3.8015515]
[1642190793625,2.69,148.69,148.58,3.8015515]
[1642190793824,24.0312,148.68,148.58,3.8015515]
[1642190794024,24.0312,148.68,148.56,5.70232725]
[1642190794025,80.0,148.66,148.56,5.70232725]
[1642190794226,102.4659,148.65,148.49,19.60277875]
[1642190794424,67.32,148.63,148.49,9.50387875]
[1642190794624,12.372,148.62,148.49,9.50387875]
[1642190794825,14.07277588,148.62,148.49,9.50387875]
[1642190795025,67.32,148.61,148.49,9.50387875]
[1642190795224,77.4203,148.57,148.49,9.50387875]
[1642190795426,10.1003,148.57,148.55,3.82507695]
[1642190795630,5.56439993,148.56,148.55,3.82507695]
[1642190796428,28.43403406,148.56,148.55,3.82507695]
[1642190796929,28.43403406,148.56,148.53,2.692]
[1642190798029,28.43403406,148.56,148.49,10.0985]
[1642190799429,28.43403406,148.56,148.49,12.01221321]
[1642190799729,28.43403406,148.56,148.49,12.26221321]
[1642190800858,27.93403406,148.56,148.49,12.26221321]
[1642190801257,5.06439993,148.56,148.49,12.26221321]
[1642190801656,5.06439993,148.56,148.49,27.94221321]
[1642190801855,22.5664,148.61,148.49,27.94221321]
[1642190802055,28.8164,148.61,148.49,27.94221321]
[1642190802359,54.5437042,148.61,148.49,27.94221321]
[1642190802556,54.2937042,148.61,148.53,10.0959]
[1642190803057,54.2937042,148.61,148.53,16.3459]
[1642190803460,60.2937042,148.61,148.53,16.3459]
[1642190803959,60.5437042,148.61,148.53,16.3459]
[1642190804757,54.2937042,148.61,148.53,10.3459]
[1642190805965,54.2937042,148.61,148.53,16.3459]
[1642190806163,54.2937042,148.61,148.53,18.25961321]
[1642190806363,2.693,148.63,148.53,18.25961321]
[1642190806563,6.0,148.63,148.53,18.25961321]
[1642190806765,28.7125,148.64,148.53,18.25961321]
[1642190806964,28.9625,148.64,148.53,18.25961321]
[1642190807164,28.9625,148.64,148.54,9.68]
[1642190807365,60.47638416,148.64,148.56,10.0942]
[1642190807565,60.47638416,148.64,148.56,10.3442]
[1642190807766,60.47638416,148.64,148.56,10.0942]
[1642190807966,60.47638416,148.64,148.54,1.91371321]
[1642190808168,60.47638416,148.64,148.54,2.16371321]
[1642190808867,60.47638416,148.64,148.54,0.25]
[1642190809266,70.57188416,148.64,148.53,2.16371321]
[1642190809467,9.68,148.63,148.53,2.16371321]
[1642190809671,70.012,148.62,148.53,1.91371321]
[1642190809869,24.5545,148.61,148.53,1.91371321]
[1642190810071,2.692,148.6,148.53,1.91371321]
[1642190810470,8.942,148.6,148.53,1.91371321]
[1642190810670,8.942,148.6,148.5,1.91371321]
[1642190810870,31.92028209,148.58,148.5,1.91371321]
[1642190811071,2.692,148.57,148.5,1.91371321]
[1642190811278,12.7922,148.57,148.5,1.91371321]
[1642190811472,13.0422,148.57,148.5,1.91371321]
[1642190811874,19.0422,148.57,148.49,1.91371321]
[1642190812473,42.5699,148.57,148.49,2.16371321]
[1642190812675,44.27067588,148.57,148.49,0.25]
[1642190813077,44.27067588,148.57,148.48,1.91371321]
[1642190813282,10.1041,148.52,148.48,1.91371321]
[1642190813475,29.14182649,148.5,148.48,1.91371321]
[1642190813676,36.06439993,148.49,148.48,1.91371321]
[1642190814078,36.31439993,148.49,148.48,1.91371321]
[1642190814677,39.0,148.48,148.39,103.38]
[1642190814878,39.0,148.48,148.39,93.7]
[1642190815078,45.25,148.48,148.44,1.914402]
[1642190815278,50.0,148.46,148.4,3.82880401]
[1642190815679,27.61425425,148.45,148.35,9.68]
[1642190815881,72.0,148.44,148.34,86.32851901]
[1642190816078,74.945,148.44,148.34,86.32851901]
[1642190816879,26.78940423,148.43,148.34,86.32851901]
[1642190817079,37.14920423,148.43,148.34,63.12751901]
[1642190817480,37.14920423,148.43,148.34,52.76851901]
[1642190817682,1.70077588,148.42,148.28,9.68]
[1642190817880,51.16677588,148.42,148.28,9.68]
[1642190818082,57.41677588,148.42,148.28,9.68]
[1642190818481,10.1126,148.39,148.28,9.68]
[1642190818681,2.696,148.38,148.28,9.68]
[1642190818884,2.696,148.38,148.28,9.93]
[1642190819084,6.25,148.38,148.28,15.93]
[1642190819515,0.25,148.38,148.28,15.93]
[1642190819682,6.25,148.38,148.28,15.93]
[1642190820283,0.25,148.38,148.28,15.93]
[1642190820485,13.0589,148.39,148.28,26.0434]
[1642190821686,2.946,148.39,148.28,26.0434]
[1642190821885,0.25,148.39,148.28,26.0434]
[1642190822083,6.0,148.41,148.28,31.6264]
[1642190822583,6.0,148.43,148.29,67.32]
[1642190822784,2.696,148.42,148.34,10.1093]
[1642190822985,8.946,148.42,148.3,9.68]
[1642190823184,32.18486715,148.42,148.3,15.68]
[1642190823385,2.696,148.41,148.3,15.68]
[1642190823585,8.946,148.41,148.3,15.68]
[1642190823788,8.946,148.41,148.3,9.68]
[1642190824086,19.0572,148.41,148.3,19.7916]
[1642190824287,19.0572,148.41,148.3,20.0416]
[1642190825486,8.946,148.41,148.3,26.0416]
[1642190825685,8.696,148.41,148.31,67.32]
[1642190825886,6.0,148.41,148.35,10.1082]
[1642190826085,49.9928,148.43,148.35,10.3582]
[1642190826086,55.9928,148.43,148.35,10.3582]
[1642190826686,55.9928,148.43,148.35,10.1082]
[1642190827592,56.2428,148.43,148.35,10.1082]
[1642190827789,56.2428,148.43,148.33,10.1096]
[1642190827989,56.2428,148.43,148.33,10.3596]
[1642190828188,56.2428,148.43,148.33,10.1096]
[1642190829397,66.3524,148.43,148.33,10.1096]
[1642190830093,66.3524,148.43,148.31,10.1109]
[1642190832101,66.3524,148.43,148.31,10.3609]
[1642190834102,66.1024,148.43,148.31,10.3609]
[1642190835322,66.3524,148.43,148.31,10.3609]
[1642190835522,66.1024,148.43,148.31,10.3609]
[1642190836920,66.3524,148.43,148.31,10.3609]
[1642190837820,66.1024,148.43,148.31,10.3609]
[1642190839122,66.3524,148.43,148.31,10.3609]
[1642190840229,66.1024,148.43,148.31,10.3609]
[1642190840928,55.9928,148.43,148.32,9.68]
[1642190841229,55.9928,148.43,148.37,10.1073]
[1642190841531,6.25,148.43,148.37,10.3573]
[1642190842028,6.25,148.43,148.37,10.1073]
[1642190842632,78.5686,148.44,148.37,10.3573]
[1642190842829,81.5136,148.44,148.37,10.3573]
[1642190843632,81.2636,148.44,148.37,10.3573]
[1642190843836,78.8186,148.44,148.37,10.3573]
[1642190844033,78.8186,148.44,148.37,0.25]
[1642190844436,78.8186,148.44,148.33,43.371]
[1642190844637,2.695,148.43,148.33,9.68]
[1642190845035,8.945,148.43,148.33,9.68]
[1642190845935,8.945,148.43,148.33,9.93]
[1642190846537,8.945,148.43,148.34,10.1087]
[1642190848536,8.945,148.43,148.34,19.7887]
[1642190849340,8.945,148.43,148.34,20.0387]
[1642190849941,8.945,148.43,148.34,26.0387]
[1642190851744,8.945,148.43,148.34,19.7887]
[1642190852645,8.945,148.43,148.34,87.1087]
[1642190852844,8.945,148.43,148.34,93.1087]
[1642190853045,6.25,148.43,148.34,93.3587]
[1642190853271,6.25,148.43,148.34,26.0387]
[1642190854079,6.25,148.43,148.34,93.3587]
[1642190854274,0.25,148.43,148.34,93.3587]
[1642190854473,2.695,148.45,148.34,93.6187]
[1642190854676,24.4043,148.46,148.34,93.6187]
[1642190854875,24.0476,148.48,148.34,214.6187]
[1642190855075,24.0476,148.48,148.37,121.0]
[1642190855277,2.695,148.49,148.43,10.1024]
[1642190855475,48.47961778,148.5,148.43,10.3524]
[1642190856285,48.72961778,148.5,148.43,10.3524]
[1642190856980,48.47961778,148.5,148.43,10.3524]
[1642190858380,48.72961778,148.5,148.41,19.7841]
[1642190858582,122.04961778,148.5,148.41,20.0341]
[1642190858783,122.04961778,148.5,148.41,9.93]
[1642190858980,54.72961778,148.5,148.41,9.93]
[1642190859781,2.694,148.49,148.41,9.93]
[1642190859980,8.944,148.49,148.41,20.0343]
[1642190861484,2.944,148.49,148.41,20.0343]
[1642190861683,2.694,148.49,148.41,20.0343]
[1642190862988,23.0303,148.5,148.41,20.0343]
[1642190863186,29.0303,148.5,148.41,20.0343]
[1642190863490,23.0303,148.5,148.41,20.0343]
[1642190863687,31.53817966,148.49,148.41,20.0343]
[1642190863887,31.53817966,148.49,148.41,19.7843]
[1642190864092,31.78817966,148.49,148.36,9.68]
[1642190864287,26.5549,148.48,148.36,9.68]
[1642190864488,32.8049,148.48,148.36,9.68]
[1642190865386,42.9118,148.48,148.37,10.1067]
[1642190865688,42.9118,148.48,148.37,10.3567]
[1642190865886,32.8049,148.48,148.37,10.3567]
[1642190866287,26.8049,148.48,148.37,10.3567]
[1642190867787,26.8049,148.48,148.37,10.1067]
[1642190867986,42.9113,148.48,148.37,10.1067]
[1642190868588,110.2313,148.48,148.37,10.1067]
[1642190868787,42.9113,148.48,148.37,10.1067]
[1642190868988,32.8049,148.48,148.37,10.1067]
[1642190869188,32.8049,148.48,148.37,10.3567]
[1642190869588,26.8049,148.48,148.37,10.3567]
[1642190870187,32.8049,148.48,148.37,20.0367]
[1642190870989,26.8049,148.48,148.37,20.0367]
[1642190871189,32.8049,148.48,148.37,20.0367]
[1642190871589,32.8049,148.48,148.37,26.0367]
[1642190874690,42.9114,148.48,148.37,26.0367]
[1642190875593,110.2314,148.48,148.37,19.7867]
[1642190876392,42.9114,148.48,148.37,19.7867]
[1642190876991,110.2314,148.48,148.37,19.7867]
[1642190877492,110.2314,148.48,148.37,9.68]
[1642190878892,119.9114,148.48,148.35,10.1082]
[1642190879094,121.61217588,148.48,148.35,10.3582]
[1642190880597,121.61217588,148.48,148.35,10.1082]
[1642190880895,129.14917588,148.48,148.33,10.1094]
[1642190881097,129.14917588,148.48,148.33,10.3594]
[1642190882096,119.9114,148.48,148.33,10.3594]
[1642190882296,52.5914,148.48,148.34,9.68]
[1642190882495,52.5914,148.48,148.37,10.1072]
[1642190884199,52.3414,148.48,148.37,10.1072]
[1642190884399,52.3414,148.48,148.37,10.3572]
[1642190884999,8.694,148.48,148.4,10.1047]
[1642190885199,5.5,148.48,148.4,10.1047]
[1642190885499,58.74977966,148.49,148.4,20.0347]
[1642190885701,56.05577966,148.49,148.4,20.0347]
[1642190886100,66.16157966,148.49,148.4,20.0347]
[1642190886302,66.41157966,148.49,148.4,20.0347]
[1642190886701,66.16157966,148.49,148.4,20.0347]
[1642190887127,66.16157966,148.49,148.4,19.7847]
[1642190887328,142.17557966,148.49,148.4,19.7847]
[1642190887730,74.85557966,148.49,148.4,19.7847]
[1642190887928,74.85557966,148.49,148.4,20.0347]
[1642190888128,75.10557966,148.49,148.4,20.0347]
[1642190888328,75.10557966,148.49,148.4,19.7847]
[1642190888528,72.41157966,148.49,148.4,19.7847]
[1642190888728,72.41157966,148.49,148.4,20.0347]
[1642190888932,75.10557966,148.49,148.4,20.0347]
[1642190891329,75.10557966,148.49,148.4,9.93]
[1642190891533,83.64957966,148.49,148.37,13.5249553]
[1642190891732,23.4321,148.48,148.37,3.8449553]
[1642190891931,10.1096,148.44,148.37,3.8449553]
[1642190892131,29.08481764,148.43,148.37,3.8449553]
[1642190892330,26.38981764,148.43,148.37,3.8449553]
[1642190892531,32.63981764,148.43,148.37,3.8449553]
[1642190892731,26.63981764,148.43,148.35,3.8449553]
[1642190892931,26.63981764,148.43,148.35,4.0949553]
[1642190893734,32.63981764,148.43,148.35,4.0949553]
[1642190894139,42.74981764,148.43,148.35,4.0949553]
[1642190894334,42.74981764,148.43,148.35,0.25]
[1642190894537,36.74981764,148.43,148.33,14.2049553]
[1642190894736,36.74981764,148.43,148.33,20.2049553]
[1642190895736,36.74981764,148.43,148.33,16.36]
[1642190896037,36.74981764,148.43,148.33,10.36]
[1642190896835,42.74981764,148.43,148.33,14.2049553]
[1642190897036,26.63981764,148.43,148.33,14.2049553]
[1642190897237,26.63981764,148.43,148.34,9.68]
[1642190897436,26.63981764,148.43,148.35,10.1084]
[1642190897638,26.38981764,148.43,148.35,10.3584]
[1642190899140,26.63981764,148.43,148.35,10.3584]
[1642190901142,26.38981764,148.43,148.35,10.3584]
[1642190904042,26.63981764,148.43,148.35,10.3584]
[1642190904642,26.38981764,148.43,148.35,10.3584]
[1642190904841,26.63981764,148.43,148.35,10.3584]
[1642190905242,2.695,148.42,148.35,10.3584]
[1642190905443,26.63981764,148.43,148.35,10.3584]
[1642190906948,26.63981764,148.43,148.35,0.25]
[1642190907146,2.695,148.42,148.35,0.25]
[1642190907345,2.695,148.42,148.33,14.2044553]
[1642190907546,2.945,148.42,148.33,14.2044553]
[1642190907745,26.9671,148.42,148.33,10.3595]
[1642190911851,24.2721,148.42,148.33,10.3595]
[1642190912952,26.9671,148.42,148.33,10.3595]
[1642190914353,26.9671,148.42,148.34,9.68]
[1642190914558,24.2721,148.42,148.35,10.1082]
[1642190914954,24.2721,148.42,148.35,10.3582]
[1642190916955,24.2721,148.42,148.35,16.3582]
[1642190917157,24.2721,148.42,148.35,10.3582]
[1642190917354,24.2721,148.42,148.35,16.3582]
[1642190918860,2.695,148.44,148.36,9.68]
[1642190919060,2.695,148.45,148.39,10.1056]
[1642190919259,2.695,148.47,148.39,10.1056]
[1642190919459,6.0,148.47,148.39,10.3556]
[1642190919661,2.694,148.48,148.39,10.3556]
[1642190919959,24.80751218,148.47,148.39,10.3556]
[1642190920358,30.80751218,148.47,148.39,10.3556]
[1642190920559,31.05751218,148.47,148.39,10.3556]
[1642190921562,31.05751218,148.47,148.39,10.1056]
[1642190921962,25.05751218,148.47,148.39,10.3556]
[1642190923373,31.05751218,148.47,148.39,10.3556]
[1642190923963,26.44013799,148.47,148.39,10.3556]
[1642190925166,26.19013799,148.47,148.39,10.3556]
[1642190926572,26.44013799,148.47,148.39,10.3556]
[1642190929511,29.13413799,148.47,148.38,9.68]
[1642190931016,29.13413799,148.47,148.38,9.93]
[1642190931216,29.13413799,148.47,148.38,20.0366]
[1642190931416,26.44013799,148.47,148.38,20.0366]
[1642190931618,26.44013799,148.47,148.38,26.0366]
[1642190931817,26.19013799,148.47,148.38,20.0366]
[1642190932042,26.19013799,148.47,148.38,93.3566]
[1642190932420,26.19013799,148.47,148.38,26.0366]
[1642190933518,26.44013799,148.47,148.38,26.0366]
[1642190934021,26.44013799,148.47,148.38,20.0366]
[1642190934222,26.19013799,148.47,148.38,20.0366]
[1642190934422,26.19013799,148.47,148.38,26.0366]
[1642190935725,26.19013799,148.47,148.4,12.02715157]
[1642190936023,26.19013799,148.47,148.4,12.27715157]
[1642190939027,6.0,148.47,148.4,10.3547]
[1642190939426,32.864,148.48,148.4,10.3547]
[1642190940065,27.29825659,148.47,148.4,10.3547]
[1642190940460,33.29825659,148.47,148.4,10.3547]
[1642190941957,33.29825659,148.47,148.4,12.27715157]
[1642190942158,27.29825659,148.47,148.4,12.27715157]
[1642190943360,33.29825659,148.47,148.4,12.27715157]
[1642190944359,33.29825659,148.47,148.4,2.17245157]
[1642190944759,33.54825659,148.47,148.4,1.92245157]
[1642190944960,100.86825659,148.47,148.39,1.92245157]
[1642190945161,27.1609,148.46,148.39,1.92245157]
[1642190945564,33.4109,148.46,148.39,1.92245157]
[1642190946263,35.31634619,148.46,148.37,1.92245157]
[1642190946461,35.06634619,148.46,148.37,8.17245157]
[1642190946862,1.90544619,148.46,148.38,9.68]
[1642190947062,1.90544619,148.46,148.38,16.19]
[1642190947463,1.90544619,148.47,148.39,1.92245157]
[1642190947663,1.90544619,148.47,148.4,9.68]
[1642190947865,1.90544619,148.47,148.4,18.293]
[1642190948064,1.90544619,148.47,148.41,67.32]
[1642190948264,1.90544619,148.47,148.42,9.68]
[1642190948466,1.90544619,148.47,148.42,16.19]
[1642190948665,1.90544619,148.47,148.43,10.1011]
[1642190948865,1.90544619,148.5,148.44,9.68]
[1642190949064,1.90544619,148.5,148.44,15.93]
[1642190950064,23.12289157,148.52,148.44,17.85245157]
[1642190950573,23.12289157,148.52,148.47,10.1003]
[1642190950765,26.81084619,148.53,148.47,10.1003]
[1642190950965,26.81084619,148.53,148.47,10.3503]
[1642190951668,24.9054,148.53,148.47,10.3503]
[1642190954367,24.9054,148.53,148.47,0.25]
[1642190954567,24.9054,148.53,148.45,18.27365157]
[1642190954769,27.5984,148.53,148.45,18.27365157]
[1642190954968,27.5984,148.53,148.45,12.27365157]
[1642190955168,50.1229,148.53,148.45,12.27365157]
[1642190955568,50.1229,148.53,148.45,10.3512]
[1642190956568,50.1229,148.53,148.45,20.0312]
[1642190956767,52.02834619,148.53,148.45,20.0312]
[1642190956968,49.33534619,148.53,148.45,20.0312]
[1642190957768,47.4299,148.53,148.45,20.0312]
[1642190957969,47.4299,148.53,148.45,26.0312]
[1642190958372,47.4299,148.53,148.45,27.95365157]
[1642190958569,2.693,148.52,148.45,21.95365157]
[1642190959170,2.693,148.52,148.45,20.0312]
[1642190959369,49.33534619,148.53,148.45,20.0312]
[1642190959570,52.02834619,148.53,148.45,20.0312]
[1642190960171,50.1229,148.53,148.45,20.0312]
[1642190961171,52.02834619,148.53,148.45,20.0312]
[1642190962175,52.02834619,148.53,148.45,9.93]
[1642190962373,52.27834619,148.53,148.45,9.93]
[1642190962572,68.38174619,148.53,148.45,9.93]
[1642190962773,68.38174619,148.53,148.45,9.68]
[1642190963275,68.38174619,148.53,148.4,13.9496553]
[1642190963276,80.0,148.5,148.4,13.9496553]
[1642190963476,79.694,148.49,148.4,3.8449553]
[1642190963673,96.6407851,148.48,148.4,3.8449553]
[1642190963875,2.694,148.47,148.4,3.8449553]
[1642190964075,10.1087,148.45,148.4,3.8449553]
[1642190964273,34.43061664,148.44,148.4,3.8449553]
[1642190964475,34.68061664,148.44,148.36,3.8449553]
[1642190964674,24.5974,148.43,148.36,3.8449553]
[1642190965575,24.5974,148.43,148.34,77.0]
[1642190965874,26.9649,148.46,148.36,10.1079]
[1642190965875,50.1601,148.46,148.36,10.1079]
[1642190966176,33.01858815,148.49,148.36,10.1079]
[1642190966177,2.695,148.48,148.37,9.68]
[1642190966375,30.25928405,148.49,148.37,9.68]
[1642190966578,30.25928405,148.49,148.37,16.19]
[1642190966777,26.87,148.49,148.37,83.51]
[1642190966978,2.694,148.49,148.42,10.1037]
[1642190967179,3.38928405,148.51,148.42,25.2787]
[1642190967379,3.38928405,148.51,148.42,31.5287]
[1642190967981,24.8104,148.52,148.42,31.5287]
[1642190968381,30.8104,148.52,148.42,31.5287]
[1642190968584,26.55513525,148.51,148.42,31.5287]
[1642190968785,26.80513525,148.51,148.42,31.2787]
[1642190969085,2.694,148.5,148.42,20.0337]
[1642190969283,2.694,148.5,148.42,19.7837]